{"text_format":"3","workbook":"xlsx","n_sheets":4,"sheets":["Formular de ofertă","Date de diagramă","Defalcare de cost","Rezumat de cost ofertă"],"not_rendered":{"charts":1,"images":2,"defined_names":11},"read":"whole","date_system":"1900"}

{"sheet":"Formular de ofertă","index":0,"n_rows":21,"n_cols":6,"rows_kept":21,"merged":[[0,1,0,4],[1,1,1,2],[7,1,8,1],[7,2,8,2],[10,1,10,5],[12,1,12,5],[14,1,14,5],[15,1,15,2],[15,4,15,5],[16,1,16,2],[16,4,16,5],[18,1,18,5],[19,1,19,2],[19,4,19,5],[20,1,20,2],[20,4,20,5]]}
[null,"Formular de ofertă pentru construcție"]
[null,"Informații de proprietar",null,null,"Informații despre executant"]
[null,"Nume","Introduceți numele proprietarului în această celulă",null,"Firmă","Introduceți numele firmei executantului în această celulă"]
[null,"Adresă","Introduceți adresa proprietarului în această celulă",null,"Nume","Introduceți numele executantului în această celulă"]
[null,"Localitate, Cod poștal","Introduceți localitatea, județul și codul poștal al proprietarului în această celulă",null,"Adresă","Introduceți adresa executantului în această celulă"]
[null,"Telefon","Introduceți numărul de telefon al proprietarului în această celulă",null,"Localitate, Cod poștal","Introduceți orașul, județul și codul poștal al executantului în această celulă"]
[null,"E-mail","Introduceți adresa de e-mail a proprietarului în această celulă",null,"Telefon","Introduceți numărul de telefon al executantului în această celulă"]
[null,"Numele proiectului","Introduceți numele proiectului în această celulă",null,"E-mail","Introduceți adresa de e-mail a executantului în această celulă "]
[{"$nulls":4},"Data finalizării","Introduceți data de finalizare în această celulă"]
[null,"Scopul lucrării"]
[null,"Scopul lucrării al proiectului se notează aici. Tastați toate specificațiile dorite. \n\nEșantion de text: Acesta va fi un proiect simulat de construire a unui set mare de scări. Vom folosi doar cherestea de 2x4 și 2x8, precum și suporturi pentru grinzi, pentru a construi cadrul. Scările vor fi decupate din materialul 2x4. Nu se vor utiliza șuruburi mai mici de 2\".  Niciun cui nu va fi mai scurt de 19 cm. Fiecare treaptă trebuie proiectată să susțină o greutate cel puțin 226 Kg. Treptele vor fi la nivel cu cele ale casei. O scară de rulare va fi fixată de casă. Executantul se va ocupa de curățenie."]
[null,"Neinclus"]
[null,"Detaliile proiectului care nu sunt incluse se notează aici. Tastați tot ce nu este inclus în această ofertă. \n\nEșantion de text: Nu se vor instala șine. Terenul urmează a fi pregătit de proprietar. Scările vor fi vopsite de proprietar."]
[null,"Propunere din partea firmei"]
[null,"Propunere din partea firmei se notează aici. Tastați o prezentare generală a propunerii, inclusiv cine propune lucrul, data estimată de finalizare și valoarea propunerii.\n\nEșantion de text: Noi, Numele firmei, propunem scopul lucrării de mai sus, care va fi finalizat până la Data finalizării pentru suma de Valoare totală."]
[]
[null,"Trimis de (Reprezentant firmă)",null,null,"Dată"]
[null,"Acordul proprietarului"]
[null,"Acordul proprietarului se notează aici. Tastați numele proprietarului într-o declarație de confirmare care include data de finalizare și suma totală specificată în propunerea firmei. \n\nEșantion de text: Eu, Nume proprietar, accept scopul lucrării de mai sus, propus pentru a fi finalizat până la Data finalizării pentru suma de Valoare totală."]
[]
[null,"Trimis de (proprietar sau reprezentant autorizat)",null,null,"Dată"]

{"sheet":"Date de diagramă","index":1,"n_rows":7,"n_cols":3,"rows_kept":7,"hidden":true}
[]
[null,null,"Total"]
[null,{"$f":"INDEX(BidItems[#Data],MATCH(1,BidItems[Costuri medii],0),2)","v":"Taxe de muncitor"},{"$f":"INDEX(BidItems[#Data],MATCH(1,BidItems[Costuri medii],0),4)","v":200}]
[null,{"$f":"INDEX(BidItems[#Data],MATCH(2,BidItems[Costuri medii],0),2)","v":"Cherestea 2x4x10"},{"$f":"INDEX(BidItems[#Data],MATCH(2,BidItems[Costuri medii],0),4)","v":99.39999999999999}]
[null,{"$f":"INDEX(BidItems[#Data],MATCH(3,BidItems[Costuri medii],0),2)","v":"Suporturi pentru grinzi"},{"$f":"INDEX(BidItems[#Data],MATCH(3,BidItems[Costuri medii],0),4)","v":74.7}]
[null,{"$f":"INDEX(BidItems[#Data],MATCH(4,BidItems[Costuri medii],0),2)","v":"Cherestea 2x8x10"},{"$f":"INDEX(BidItems[#Data],MATCH(4,BidItems[Costuri medii],0),4)","v":33.75}]
[null,{"$f":"INDEX(BidItems[#Data],MATCH(5,BidItems[Costuri medii],0),2)","v":"Pereche de mănuși, piele"},{"$f":"INDEX(BidItems[#Data],MATCH(5,BidItems[Costuri medii],0),4)","v":15.5}]

{"sheet":"Defalcare de cost","index":2,"n_rows":14,"n_cols":6,"rows_kept":14,"merged":[[0,1,0,4],[1,1,1,4]]}
[null,"Defalcare de cost",{"$nulls":3}," "]
[null,"Listă de materiale și costuri"]
[null,"Cant.","Descriere","Cost","Total","Costuri medii"]
[null,5,"Cherestea 2x8x10",{"v":6.75,"d":"6.75 lei"},{"$f":"IFERROR(BidItems[[#This Row],[Cost]]*BidItems[[#This Row],[Cant.]], \"\")","v":{"v":33.75,"d":"33.75 lei"}},{"$f":"_xlfn.RANK.EQ(BidItems[[#This Row],[Total]],BidItems[Total])","v":4}]
[null,20,"Cherestea 2x4x10",{"v":4.97,"d":"4.97 lei"},{"$f":"IFERROR(BidItems[[#This Row],[Cost]]*BidItems[[#This Row],[Cant.]], \"\")","v":{"v":99.39999999999999,"d":"99.40 lei"}},{"$f":"_xlfn.RANK.EQ(BidItems[[#This Row],[Total]],BidItems[Total])","v":2}]
[null,30,"Suporturi pentru grinzi",{"v":2.49,"d":"2.49 lei"},{"$f":"IFERROR(BidItems[[#This Row],[Cost]]*BidItems[[#This Row],[Cant.]], \"\")","v":{"v":74.7,"d":"74.70 lei"}},{"$f":"_xlfn.RANK.EQ(BidItems[[#This Row],[Total]],BidItems[Total])","v":3}]
[null,2,"Cutie de șuruburi, 5 cm",{"v":6.67,"d":"6.67 lei"},{"$f":"IFERROR(BidItems[[#This Row],[Cost]]*BidItems[[#This Row],[Cant.]], \"\")","v":{"v":13.34,"d":"13.34 lei"}},{"$f":"_xlfn.RANK.EQ(BidItems[[#This Row],[Total]],BidItems[Total])","v":6}]
[null,2,"Cutie de cuie, 19 cm",{"v":3.25,"d":"3.25 lei"},{"$f":"IFERROR(BidItems[[#This Row],[Cost]]*BidItems[[#This Row],[Cant.]], \"\")","v":{"v":6.5,"d":"6.50 lei"}},{"$f":"_xlfn.RANK.EQ(BidItems[[#This Row],[Total]],BidItems[Total])","v":7}]
[null,2,"Pereche de mănuși, piele",{"v":7.75,"d":"7.75 lei"},{"$f":"IFERROR(BidItems[[#This Row],[Cost]]*BidItems[[#This Row],[Cant.]], \"\")","v":{"v":15.5,"d":"15.50 lei"}},{"$f":"_xlfn.RANK.EQ(BidItems[[#This Row],[Total]],BidItems[Total])","v":5}]
[null,2,"Taxe de muncitor",{"v":100,"d":"100.00 lei"},{"$f":"IFERROR(BidItems[[#This Row],[Cost]]*BidItems[[#This Row],[Cant.]], \"\")","v":{"v":200,"d":"200.00 lei"}},{"$f":"_xlfn.RANK.EQ(BidItems[[#This Row],[Total]],BidItems[Total])","v":1}]
[4,null,null,"Subtotal",{"$f":"SUBTOTAL(109,BidItems[Total])","v":{"v":443.18999999999994,"d":"443.19 lei"}}]
[5,null,null,"Cota TVA",{"v":0.075,"d":"7.50%"}]
[{"$nulls":3},"Impozit",{"$f":"IFERROR(TaxRate*BidItems[[#Totals],[Total]], \"\")","v":{"v":33.23924999999999,"d":"33.24 lei"}}]
[{"$nulls":3},"Total general",{"$f":"IFERROR(Impozit+BidItems[[#Totals],[Total]], \"\")","v":{"v":476.4292499999999,"d":"476.43 lei"}}]

{"sheet":"Rezumat de cost ofertă","index":3,"n_rows":3,"n_cols":4,"rows_kept":3}
[null,"Rezumat de cost ofertă"]
[null,"Defalcarea materialelor și costurilor",null,"Note"]
[null,"Diagramă radială afișând primele 5 costuri per material. Datele se bazează pe tabelul Elemente ofertă din foaia de lucru Defalcare costuri",null,"Introduceți note în această celulă"]